[Event "Early-Titled-Tuesday-Blitz-September-12-2023"]
[Site "Chess.com"]
[Date "2023.09.12"]
[Round "2"]
[White "AleksanderHnydiuk"]
[Black "schackspelaren"]
[Result "1-0"]
[WhiteElo "2515"]
[BlackElo "2294"]
[TimeControl "180+1"]
[EndTime "8:18:04 PDT"]
[Termination "AleksanderHnydiuk won on time"]

1. d4 {[%clk 0:03:00.9]} 1... Nf6 {[%clk 0:02:46.9]} 2. c4 {[%clk 0:03:00.8]}
2... e6 {[%clk 0:02:47.1]} 3. g3 {[%clk 0:02:59.6]} 3... d5 {[%clk 0:02:46]} 4.
Bg2 {[%clk 0:02:59]} 4... Bb4+ {[%clk 0:02:45.2]} 5. Nd2 {[%clk 0:02:57.8]} 5...
O-O {[%clk 0:02:40.9]} 6. Nf3 {[%clk 0:02:57.8]} 6... dxc4 {[%clk 0:02:40.6]} 7.
O-O {[%clk 0:02:56.7]} 7... Nbd7 {[%clk 0:02:32.1]} 8. Qa4 {[%clk 0:02:47.8]}
8... Be7 {[%clk 0:02:26.7]} 9. Nxc4 {[%clk 0:02:43.9]} 9... Nd5 {[%clk
0:02:23.7]} 10. Rd1 {[%clk 0:02:36.1]} 10... N7b6 {[%clk 0:02:20.8]} 11. Nxb6
{[%clk 0:02:34]} 11... Nxb6 {[%clk 0:02:20.6]} 12. Qc2 {[%clk 0:02:34]} 12... c6
{[%clk 0:02:17.7]} 13. Ne5 {[%clk 0:02:28.2]} 13... Nd7 {[%clk 0:02:16.6]} 14.
Nd3 {[%clk 0:02:27.4]} 14... Nf6 {[%clk 0:01:48.9]} 15. e3 {[%clk 0:02:16.9]}
15... Bd7 {[%clk 0:01:46.9]} 16. Bd2 {[%clk 0:02:13.3]} 16... Rc8 {[%clk
0:01:45.6]} 17. Rac1 {[%clk 0:02:12.5]} 17... b6 {[%clk 0:01:42.5]} 18. b4
{[%clk 0:02:10.3]} 18... Nd5 {[%clk 0:01:32.4]} 19. Qb3 {[%clk 0:02:09.6]} 19...
Kh8 {[%clk 0:01:22.4]} 20. Rc2 {[%clk 0:02:09.7]} 20... h5 {[%clk 0:01:17.9]}
21. Rdc1 {[%clk 0:02:06.9]} 21... h4 {[%clk 0:01:17.6]} 22. Ne5 {[%clk
0:02:06.7]} 22... Qe8 {[%clk 0:00:58.7]} 23. Be4 {[%clk 0:01:53.1]} 23... f5
{[%clk 0:00:50]} 24. Bg2 {[%clk 0:01:49.8]} 24... Bf6 {[%clk 0:00:41.9]} 25. Nd3
{[%clk 0:01:36.9]} 25... g5 {[%clk 0:00:38.1]} 26. f3 {[%clk 0:01:36]} 26... Qh5
{[%clk 0:00:25.4]} 27. Ne5 {[%clk 0:01:31.5]} 27... Bxe5 {[%clk 0:00:24.5]} 28.
dxe5 {[%clk 0:01:32.4]} 28... Rf7 {[%clk 0:00:17.4]} 29. e4 {[%clk 0:01:28]}
29... fxe4 {[%clk 0:00:15.3]} 30. fxe4 {[%clk 0:01:28.9]} 30... Ne7 {[%clk
0:00:14.8]} 31. Be3 {[%clk 0:01:18.4]} 31... Rh7 {[%clk 0:00:13.6]} 32. Bf2
{[%clk 0:00:49.9]} 32... Ng6 {[%clk 0:00:13.4]} 33. Rd2 {[%clk 0:00:45.9]} 33...
Rf8 {[%clk 0:00:12.5]} 34. Qe3 {[%clk 0:00:41.3]} 34... Rff7 {[%clk 0:00:10.7]}
35. Rcd1 {[%clk 0:00:39.9]} 35... hxg3 {[%clk 0:00:07.3]} 36. Bxg3 {[%clk
0:00:39.5]} 36... Qg4 {[%clk 0:00:05]} 37. Qe2 {[%clk 0:00:32.7]} 37... Qxe2
{[%clk 0:00:04.5]} 38. Rxe2 {[%clk 0:00:33.6]} 38... Nf4 {[%clk 0:00:04.8]} 39.
Red2 {[%clk 0:00:30.4]} 39... Kg8 {[%clk 0:00:03.6]} 40. Rd6 {[%clk 0:00:28]}
40... Kf8 {[%clk 0:00:03.9]} 41. Bf3 {[%clk 0:00:26.7]} 41... Ke8 {[%clk
0:00:03.8]} 42. Bg4 {[%clk 0:00:26.2]} 1-0

[Event "Early-Titled-Tuesday-Blitz-September-12-2023"]
[Site "Chess.com"]
[Date "2023.09.12"]
[Round "2"]
[White "GM4life"]
[Black "reniite"]
[Result "1-0"]
[WhiteElo "2537"]
[BlackElo "2352"]
[TimeControl "180+1"]
[EndTime "8:18:05 PDT"]
[Termination "GM4life won by resignation"]

1. c4 {[%clk 0:03:00.9]} 1... e6 {[%clk 0:02:57.3]} 2. d4 {[%clk 0:02:59.4]}
2... d5 {[%clk 0:02:57.8]} 3. g3 {[%clk 0:02:59.1]} 3... Nf6 {[%clk 0:02:57.6]}
4. Bg2 {[%clk 0:02:59.2]} 4... Be7 {[%clk 0:02:58.1]} 5. Nf3 {[%clk 0:02:59.4]}
5... O-O {[%clk 0:02:58.6]} 6. O-O {[%clk 0:02:59.9]} 6... dxc4 {[%clk 0:02:59]}
7. Qc2 {[%clk 0:02:58.2]} 7... b6 {[%clk 0:02:54.1]} 8. Nbd2 {[%clk 0:02:54.7]}
8... Bb7 {[%clk 0:02:53.8]} 9. Nxc4 {[%clk 0:02:43]} 9... c5 {[%clk 0:02:49.9]}
10. dxc5 {[%clk 0:02:41.9]} 10... Bxc5 {[%clk 0:02:49.7]} 11. Bg5 {[%clk
0:02:39.2]} 11... Nbd7 {[%clk 0:02:48.5]} 12. Rad1 {[%clk 0:02:32.9]} 12... Qc8
{[%clk 0:02:48.8]} 13. e3 {[%clk 0:02:01.9]} 13... h6 {[%clk 0:02:40.8]} 14.
Bxf6 {[%clk 0:01:55.7]} 14... Nxf6 {[%clk 0:02:41.7]} 15. a3 {[%clk 0:01:50.3]}
15... Ba6 {[%clk 0:02:30]} 16. Nfe5 {[%clk 0:01:46.2]} 16... Nd5 {[%clk
0:02:16.1]} 17. Rxd5 {[%clk 0:01:23.4]} 17... exd5 {[%clk 0:02:14.5]} 18. Bxd5
{[%clk 0:01:24.3]} 18... Bb7 {[%clk 0:02:10.9]} 19. e4 {[%clk 0:00:47]} 19... b5
{[%clk 0:01:13.8]} 20. Na5 {[%clk 0:00:40.5]} 20... Bxd5 {[%clk 0:01:11.3]} 21.
exd5 {[%clk 0:00:40.2]} 21... Bd6 {[%clk 0:00:48]} 22. Nac6 {[%clk 0:00:39.4]}
22... Qc7 {[%clk 0:00:45.8]} 23. Nf3 {[%clk 0:00:34.2]} 23... a5 {[%clk
0:00:43.9]} 24. Nfd4 {[%clk 0:00:33.6]} 24... b4 {[%clk 0:00:39.9]} 25. a4
{[%clk 0:00:33.3]} 25... Rac8 {[%clk 0:00:36]} 26. Re1 {[%clk 0:00:31.2]} 26...
Rfe8 {[%clk 0:00:32.8]} 27. Rxe8+ {[%clk 0:00:28.9]} 27... Rxe8 {[%clk
0:00:32.9]} 28. Nb5 {[%clk 0:00:29.3]} 28... Qd7 {[%clk 0:00:32.5]} 29. Kg2
{[%clk 0:00:28.6]} 29... Bb8 {[%clk 0:00:32.1]} 30. Qc4 {[%clk 0:00:26.4]} 30...
g6 {[%clk 0:00:26.8]} 31. Nxa5 {[%clk 0:00:22.5]} 31... Re5 {[%clk 0:00:26.8]}
32. Nc6 {[%clk 0:00:21.1]} 32... Re8 {[%clk 0:00:24.2]} 33. a5 {[%clk
0:00:20.5]} 33... Be5 {[%clk 0:00:21.2]} 34. a6 {[%clk 0:00:19.9]} 34... Bxb2
{[%clk 0:00:20.5]} 35. a7 {[%clk 0:00:20.3]} 35... Ba3 {[%clk 0:00:19.2]} 36.
Nb8 {[%clk 0:00:20.1]} 36... Qb7 {[%clk 0:00:18.5]} 37. Qc6 {[%clk 0:00:20.7]}
37... Qxc6 {[%clk 0:00:10.4]} 38. dxc6 {[%clk 0:00:20.5]} 38... b3 {[%clk
0:00:07.7]} 39. Nxa3 {[%clk 0:00:19]} 1-0

[Event "Early-Titled-Tuesday-Blitz-September-12-2023"]
[Site "Chess.com"]
[Date "2023.09.12"]
[Round "2"]
[White "Dom1nant1337"]
[Black "SantoBlue"]
[Result "0-1"]
[WhiteElo "2594"]
[BlackElo "2923"]
[TimeControl "180+1"]
[EndTime "8:18:08 PDT"]
[Termination "SantoBlue won by checkmate"]

1. d4 {[%clk 0:03:00.2]} 1... d6 {[%clk 0:02:56.9]} 2. g3 {[%clk 0:02:54.9]}
2... c5 {[%clk 0:02:52.9]} 3. dxc5 {[%clk 0:02:52.8]} 3... Qa5+ {[%clk
0:02:53.1]} 4. Nc3 {[%clk 0:02:52.6]} 4... Qxc5 {[%clk 0:02:53.2]} 5. Bg2 {[%clk
0:02:52.7]} 5... Nf6 {[%clk 0:02:53.4]} 6. Nf3 {[%clk 0:02:49.6]} 6... g6 {[%clk
0:02:53.2]} 7. O-O {[%clk 0:02:42.1]} 7... Bg7 {[%clk 0:02:53]} 8. Bg5 {[%clk
0:02:35.1]} 8... Nbd7 {[%clk 0:02:48.6]} 9. Qd2 {[%clk 0:02:31]} 9... O-O {[%clk
0:02:44.4]} 10. Bh6 {[%clk 0:02:27.7]} 10... Rb8 {[%clk 0:02:42.4]} 11. Bxg7
{[%clk 0:02:14.8]} 11... Kxg7 {[%clk 0:02:43.3]} 12. a4 {[%clk 0:02:12.3]} 12...
b6 {[%clk 0:02:37.4]} 13. Nd4 {[%clk 0:02:10.8]} 13... Bb7 {[%clk 0:02:36.4]}
14. Nb3 {[%clk 0:02:05.6]} 14... Qh5 {[%clk 0:02:34.4]} 15. Bxb7 {[%clk
0:01:55.1]} 15... Rxb7 {[%clk 0:02:35.3]} 16. a5 {[%clk 0:01:37.1]} 16... Rc8
{[%clk 0:02:34.5]} 17. axb6 {[%clk 0:01:31.7]} 17... Nxb6 {[%clk 0:02:35.4]} 18.
Na5 {[%clk 0:01:14.7]} 18... Rbc7 {[%clk 0:02:34.2]} 19. Qd4 {[%clk 0:01:11.4]}
19... Nc4 {[%clk 0:02:29.2]} 20. Nxc4 {[%clk 0:01:09.7]} 20... Rxc4 {[%clk
0:02:29.6]} 21. Qxa7 {[%clk 0:01:06.4]} 21... Qh3 {[%clk 0:02:22.8]} 22. f3
{[%clk 0:00:54.3]} 22... R8c5 {[%clk 0:02:23.1]} 23. Qxe7 {[%clk 0:00:44.1]}
23... Rg5 {[%clk 0:02:18.9]} 24. Rf2 {[%clk 0:00:38.3]} 24... Rh4 {[%clk
0:02:17.1]} 25. Rg2 {[%clk 0:00:29.1]} 25... Re5 {[%clk 0:00:59.3]} 26. Qxd6
{[%clk 0:00:25.2]} 26... Rhh5 {[%clk 0:00:59.6]} 27. Ra7 {[%clk 0:00:20]} 27...
Qc8 {[%clk 0:00:53.2]} 28. Qc7 {[%clk 0:00:19.5]} 28... Qf8 {[%clk 0:00:50.9]}
29. e4 {[%clk 0:00:17.9]} 29... Ne8 {[%clk 0:00:42.9]} 30. Qd7 {[%clk
0:00:16.4]} 30... Qc5+ {[%clk 0:00:42.3]} 31. Kf1 {[%clk 0:00:15.4]} 31... Nd6
{[%clk 0:00:42.1]} 32. Rd2 {[%clk 0:00:13.9]} 32... Qe3 {[%clk 0:00:38]} 33.
Qxd6 {[%clk 0:00:13.7]} 33... Qxf3+ {[%clk 0:00:36.6]} 34. Rf2 {[%clk
0:00:14.2]} 34... Qh1+ {[%clk 0:00:35.4]} 35. Ke2 {[%clk 0:00:14]} 35... Rxe4+
{[%clk 0:00:35.5]} 36. Nxe4 {[%clk 0:00:14.9]} 36... Qxe4+ {[%clk 0:00:36.3]}
37. Kf1 {[%clk 0:00:11]} 37... Qh1+ {[%clk 0:00:36.8]} 38. Ke2 {[%clk 0:00:10]}
38... Qe4+ {[%clk 0:00:37.5]} 39. Kd2 {[%clk 0:00:05.5]} 39... Rd5+ {[%clk
0:00:37.8]} 40. Qxd5 {[%clk 0:00:05.9]} 40... Qxd5+ {[%clk 0:00:38.7]} 41. Kc1
{[%clk 0:00:04.7]} 41... Qe4 {[%clk 0:00:39.4]} 42. Raxf7+ {[%clk 0:00:03.5]}
42... Kh6 {[%clk 0:00:39.5]} 43. R7f4 {[%clk 0:00:03.7]} 43... Qe1# {[%clk
0:00:39.8]} 0-1

[Event "Early-Titled-Tuesday-Blitz-September-12-2023"]
[Site "Chess.com"]
[Date "2023.09.12"]
[Round "2"]
[White "AlexanderL"]
[Black "arminmusovic"]
[Result "1-0"]
[WhiteElo "2853"]
[BlackElo "2558"]
[TimeControl "180+1"]
[EndTime "8:18:08 PDT"]
[Termination "AlexanderL won by resignation"]

1. Nf3 {[%clk 0:03:00.9]} 1... d5 {[%clk 0:02:57.8]} 2. e3 {[%clk 0:02:58.5]}
2... Nf6 {[%clk 0:02:56.7]} 3. c4 {[%clk 0:02:58]} 3... c5 {[%clk 0:02:55.3]} 4.
cxd5 {[%clk 0:02:57.3]} 4... Nxd5 {[%clk 0:02:55.2]} 5. Nc3 {[%clk 0:02:58.2]}
5... a6 {[%clk 0:02:54.3]} 6. Qb3 {[%clk 0:02:54]} 6... e6 {[%clk 0:02:51.9]} 7.
d4 {[%clk 0:02:51]} 7... Nc6 {[%clk 0:02:51.3]} 8. Be2 {[%clk 0:02:47.1]} 8...
Be7 {[%clk 0:02:34.7]} 9. O-O {[%clk 0:02:46.6]} 9... O-O {[%clk 0:02:34.9]} 10.
Nxd5 {[%clk 0:02:46.8]} 10... exd5 {[%clk 0:02:35.1]} 11. dxc5 {[%clk
0:02:46.3]} 11... Bxc5 {[%clk 0:02:34.9]} 12. Rd1 {[%clk 0:02:46]} 12... Be6
{[%clk 0:02:27.6]} 13. Qc3 {[%clk 0:02:39.7]} 13... Bb4 {[%clk 0:02:23.3]} 14.
Qd3 {[%clk 0:02:36.5]} 14... h6 {[%clk 0:02:22.4]} 15. Bd2 {[%clk 0:02:36.5]}
15... Bxd2 {[%clk 0:02:16.6]} 16. Qxd2 {[%clk 0:02:35.4]} 16... Qb6 {[%clk
0:02:14.8]} 17. Nd4 {[%clk 0:02:35.3]} 17... Rad8 {[%clk 0:02:10.7]} 18. Rac1
{[%clk 0:02:33.4]} 18... Ne5 {[%clk 0:02:11]} 19. Rc3 {[%clk 0:02:31.5]} 19...
Rd7 {[%clk 0:02:10.5]} 20. b3 {[%clk 0:02:30.1]} 20... Rfd8 {[%clk 0:02:10.2]}
21. Rdc1 {[%clk 0:02:30.4]} 21... Qd6 {[%clk 0:02:10.3]} 22. f4 {[%clk
0:02:27.5]} 22... Nc6 {[%clk 0:01:56.3]} 23. Nxc6 {[%clk 0:02:26.3]} 23... bxc6
{[%clk 0:01:56.2]} 24. Rxc6 {[%clk 0:02:26.7]} 24... Qb8 {[%clk 0:01:52.4]} 25.
Qd4 {[%clk 0:02:15.6]} 25... a5 {[%clk 0:01:48.3]} 26. Bd3 {[%clk 0:02:15.7]}
26... Re7 {[%clk 0:01:42.8]} 27. f5 {[%clk 0:02:14.3]} 27... Bd7 {[%clk
0:01:43.2]} 28. f6 {[%clk 0:02:14.6]} 28... Re4 {[%clk 0:01:37.7]} 29. Bxe4
{[%clk 0:02:12.9]} 29... Bxc6 {[%clk 0:01:38]} 30. Bf5 {[%clk 0:02:05.1]} 30...
Be8 {[%clk 0:01:26.7]} 31. fxg7 {[%clk 0:02:05.1]} 31... Qd6 {[%clk 0:01:26]}
32. h4 {[%clk 0:02:01.9]} 32... Qg3 {[%clk 0:01:25]} 33. Rf1 {[%clk 0:01:43.7]}
33... Qxg7 {[%clk 0:01:23]} 34. Qxg7+ {[%clk 0:01:42.9]} 34... Kxg7 {[%clk
0:01:23.9]} 35. Rf4 {[%clk 0:01:42.7]} 35... Rb8 {[%clk 0:01:16.3]} 36. Rd4
{[%clk 0:01:39.4]} 36... Bc6 {[%clk 0:01:16.2]} 37. Kf2 {[%clk 0:01:39.5]} 37...
Kf6 {[%clk 0:01:15]} 38. Bd3 {[%clk 0:01:36.1]} 38... a4 {[%clk 0:01:02.8]} 39.
b4 {[%clk 0:01:35.3]} 39... a3 {[%clk 0:01:01]} 40. g4 {[%clk 0:01:34.3]} 40...
Ke5 {[%clk 0:00:57.2]} 41. Ke2 {[%clk 0:01:31.7]} 41... Ba4 {[%clk 0:00:49]} 42.
Kd2 {[%clk 0:01:31.3]} 42... Bb3 {[%clk 0:00:45.4]} 43. b5 {[%clk 0:01:22.1]}
43... Bxa2 {[%clk 0:00:42]} 44. Ra4 {[%clk 0:01:22.1]} 44... Bc4 {[%clk
0:00:36]} 45. Ra5 {[%clk 0:01:17]} 45... a2 {[%clk 0:00:33.7]} 46. Bxc4 {[%clk
0:01:15]} 46... dxc4 {[%clk 0:00:34.6]} 47. Kc3 {[%clk 0:01:12]} 47... Ke4
{[%clk 0:00:33.9]} 48. Kxc4 {[%clk 0:01:09.7]} 48... Kxe3 {[%clk 0:00:28]} 49.
Rxa2 {[%clk 0:01:08.8]} 49... Kf4 {[%clk 0:00:28.6]} 50. Rg2 {[%clk 0:01:03.9]}
50... Kf3 {[%clk 0:00:28.4]} 51. Rg1 {[%clk 0:01:03.8]} 51... Kf2 {[%clk
0:00:28.8]} 52. Rd1 {[%clk 0:01:01]} 52... Kg3 {[%clk 0:00:29.2]} 53. g5 {[%clk
0:00:56.1]} 53... Kxh4 {[%clk 0:00:27.1]} 54. gxh6 {[%clk 0:00:55.4]} 54... Kg5
{[%clk 0:00:19.2]} 55. h7 {[%clk 0:00:55.2]} 55... Rh8 {[%clk 0:00:18]} 56. Rh1
{[%clk 0:00:55.1]} 56... f5 {[%clk 0:00:18.3]} 57. b6 {[%clk 0:00:55.1]} 57...
f4 {[%clk 0:00:16.7]} 58. b7 {[%clk 0:00:55]} 58... f3 {[%clk 0:00:17.4]} 59.
Kd3 {[%clk 0:00:55]} 59... Kf4 {[%clk 0:00:17.3]} 60. b8=Q+ {[%clk 0:00:53.2]}
60... Rxb8 {[%clk 0:00:16.5]} 61. h8=Q {[%clk 0:00:54.1]} 61... Rxh8 {[%clk
0:00:16.4]} 62. Rxh8 {[%clk 0:00:54.9]} 62... Kg3 {[%clk 0:00:15.8]} 63. Ke3
{[%clk 0:00:53.3]} 1-0

[Event "Early-Titled-Tuesday-Blitz-September-12-2023"]
[Site "Chess.com"]
[Date "2023.09.12"]
[Round "2"]
[White "AleksandraMilovic"]
[Black "jup1978"]
[Result "0-1"]
[WhiteElo "2118"]
[BlackElo "2469"]
[TimeControl "180+1"]
[EndTime "8:18:10 PDT"]
[Termination "jup1978 won on time"]

1. e4 {[%clk 0:02:58.4]} 1... e5 {[%clk 0:02:56.2]} 2. Nf3 {[%clk 0:02:57.9]}
2... Nf6 {[%clk 0:02:55.9]} 3. Nxe5 {[%clk 0:02:56.2]} 3... d6 {[%clk
0:02:56.2]} 4. Nf3 {[%clk 0:02:56]} 4... Nxe4 {[%clk 0:02:56.8]} 5. Nc3 {[%clk
0:02:55.6]} 5... Nxc3 {[%clk 0:02:56.3]} 6. dxc3 {[%clk 0:02:56.5]} 6... Nc6
{[%clk 0:02:55.2]} 7. Be3 {[%clk 0:02:54.7]} 7... Be7 {[%clk 0:02:55]} 8. Qd2
{[%clk 0:02:54.9]} 8... Be6 {[%clk 0:02:55.4]} 9. O-O-O {[%clk 0:02:52.7]} 9...
a6 {[%clk 0:02:55]} 10. Kb1 {[%clk 0:02:47.2]} 10... h6 {[%clk 0:02:54.8]} 11.
Nd4 {[%clk 0:02:47.1]} 11... Nxd4 {[%clk 0:02:53.1]} 12. cxd4 {[%clk 0:02:48]}
12... d5 {[%clk 0:02:52.2]} 13. Bd3 {[%clk 0:02:48.6]} 13... Qd7 {[%clk
0:02:51.9]} 14. Rhe1 {[%clk 0:02:36.3]} 14... O-O-O {[%clk 0:02:51.2]} 15. h3
{[%clk 0:02:12]} 15... Rhe8 {[%clk 0:02:44.5]} 16. g4 {[%clk 0:02:01.3]} 16...
f5 {[%clk 0:02:36.6]} 17. f3 {[%clk 0:01:55.1]} 17... g5 {[%clk 0:02:34]} 18. c3
{[%clk 0:01:19.3]} 18... Bd6 {[%clk 0:02:21.3]} 19. Qc2 {[%clk 0:01:01.9]} 19...
Rf8 {[%clk 0:02:19.1]} 20. Bf2 {[%clk 0:00:53.2]} 20... fxg4 {[%clk 0:02:06.1]}
21. fxg4 {[%clk 0:00:54.1]} 21... Kb8 {[%clk 0:02:05.9]} 22. Re2 {[%clk
0:00:49]} 22... Rde8 {[%clk 0:02:04.6]} 23. Rde1 {[%clk 0:00:48.6]} 23... Bf7
{[%clk 0:02:04.8]} 24. Bf5 {[%clk 0:00:45.7]} 24... Qd8 {[%clk 0:02:02.8]} 25.
Qd3 {[%clk 0:00:38.4]} 25... Rxe2 {[%clk 0:02:00.7]} 26. Rxe2 {[%clk 0:00:36.1]}
26... Re8 {[%clk 0:02:00]} 27. Rxe8 {[%clk 0:00:35]} 27... Qxe8 {[%clk
0:02:00.9]} 28. Qe3 {[%clk 0:00:35.3]} 28... Bf4 {[%clk 0:01:57.4]} 29. Qxe8+
{[%clk 0:00:34.5]} 29... Bxe8 {[%clk 0:01:58.3]} 30. Kc2 {[%clk 0:00:31.8]}
30... c6 {[%clk 0:01:58.2]} 31. Kd3 {[%clk 0:00:31.7]} 31... Kc7 {[%clk
0:01:57.2]} 32. b3 {[%clk 0:00:32.3]} 32... Kd6 {[%clk 0:01:54.7]} 33. c4 {[%clk
0:00:30.4]} 33... dxc4+ {[%clk 0:01:46.5]} 34. bxc4 {[%clk 0:00:29.4]} 34... b5
{[%clk 0:01:43.9]} 35. cxb5 {[%clk 0:00:22.2]} 35... cxb5 {[%clk 0:01:41.3]} 36.
Be1 {[%clk 0:00:20.9]} 36... Kc6 {[%clk 0:01:21.5]} 37. Ba5 {[%clk 0:00:17.4]}
37... Bf7 {[%clk 0:01:17.5]} 38. a3 {[%clk 0:00:14.9]} 38... Bc4+ {[%clk
0:01:14.9]} 39. Kc3 {[%clk 0:00:13.8]} 39... Bg3 {[%clk 0:01:11.2]} 40. Kd2
{[%clk 0:00:13.4]} 40... Kd5 {[%clk 0:01:06.5]} 41. Ke3 {[%clk 0:00:12.5]} 41...
Bf4+ {[%clk 0:01:05.8]} 42. Kf3 {[%clk 0:00:12.5]} 42... Kxd4 {[%clk 0:01:05.5]}
43. Bc8 {[%clk 0:00:12.5]} 43... Bd5+ {[%clk 0:01:04.9]} 44. Kf2 {[%clk
0:00:12]} 44... Be3+ {[%clk 0:01:02.1]} 45. Kg3 {[%clk 0:00:12.1]} 45... Bc1
{[%clk 0:00:58.5]} 46. Bb4 {[%clk 0:00:08]} 46... a5 {[%clk 0:00:55.8]} 47. Bxa5
{[%clk 0:00:07.9]} 47... Bxa3 {[%clk 0:00:55.6]} 48. Bd8 {[%clk 0:00:06.1]}
48... b4 {[%clk 0:00:53.4]} 49. Be7 {[%clk 0:00:05.3]} 49... Kc4 {[%clk
0:00:48.7]} 50. Ba6+ {[%clk 0:00:04.8]} 50... Kc3 {[%clk 0:00:48.6]} 51. h4
{[%clk 0:00:04.2]} 51... Bc1 {[%clk 0:00:47.8]} 52. hxg5 {[%clk 0:00:04.1]}
52... Bxg5 {[%clk 0:00:48.7]} 53. Bf8 {[%clk 0:00:01.7]} 53... b3 {[%clk
0:00:47.7]} 0-1

[Event "Early-Titled-Tuesday-Blitz-September-12-2023"]
[Site "Chess.com"]
[Date "2023.09.12"]
[Round "2"]
[White "Evgeny81"]
[Black "DTChess"]
[Result "1-0"]
[WhiteElo "2756"]
[BlackElo "2476"]
[TimeControl "180+1"]
[EndTime "8:18:12 PDT"]
[Termination "Evgeny81 won on time"]

1. e4 {[%clk 0:03:00.9]} 1... e5 {[%clk 0:02:58.7]} 2. Nf3 {[%clk 0:03:00.7]}
2... Nc6 {[%clk 0:02:58.6]} 3. Bb5 {[%clk 0:03:00.9]} 3... a6 {[%clk 0:02:58.8]}
4. Ba4 {[%clk 0:03:01.4]} 4... Nf6 {[%clk 0:02:58.6]} 5. O-O {[%clk 0:03:01.8]}
5... b5 {[%clk 0:02:58]} 6. Bb3 {[%clk 0:03:01.8]} 6... Be7 {[%clk 0:02:58.6]}
7. d4 {[%clk 0:02:59.9]} 7... d6 {[%clk 0:02:58.4]} 8. c3 {[%clk 0:02:56]} 8...
O-O {[%clk 0:02:57.8]} 9. h3 {[%clk 0:02:53.5]} 9... exd4 {[%clk 0:02:43.3]} 10.
cxd4 {[%clk 0:02:52.6]} 10... Na5 {[%clk 0:02:43.4]} 11. Bc2 {[%clk 0:02:52]}
11... c5 {[%clk 0:02:40.5]} 12. d5 {[%clk 0:02:46.2]} 12... Nd7 {[%clk
0:02:36.8]} 13. Nbd2 {[%clk 0:02:36.6]} 13... Bf6 {[%clk 0:02:35.7]} 14. Re1
{[%clk 0:02:36.1]} 14... Re8 {[%clk 0:02:35.2]} 15. Nf1 {[%clk 0:02:35.6]} 15...
Nc4 {[%clk 0:02:28.9]} 16. Rb1 {[%clk 0:02:35.4]} 16... Nce5 {[%clk 0:02:22.7]}
17. N3h2 {[%clk 0:02:34.7]} 17... g6 {[%clk 0:02:11]} 18. b3 {[%clk 0:02:25.5]}
18... Nb6 {[%clk 0:01:55.8]} 19. f4 {[%clk 0:02:21.4]} 19... Ned7 {[%clk
0:01:55.2]} 20. Ng4 {[%clk 0:02:21.2]} 20... Bg7 {[%clk 0:01:55.1]} 21. Nfh2
{[%clk 0:02:04.2]} 21... Nf6 {[%clk 0:01:38.4]} 22. Nxf6+ {[%clk 0:01:57.2]}
22... Bxf6 {[%clk 0:01:37.2]} 23. f5 {[%clk 0:01:42.9]} 23... Ra7 {[%clk
0:01:06.1]} 24. Ng4 {[%clk 0:01:38.7]} 24... Bd4+ {[%clk 0:00:56]} 25. Kh1
{[%clk 0:01:35.6]} 25... Nd7 {[%clk 0:00:42.8]} 26. Rf1 {[%clk 0:01:26.4]} 26...
Ne5 {[%clk 0:00:28]} 27. Nh6+ {[%clk 0:01:26.3]} 27... Kg7 {[%clk 0:00:24.8]}
28. f6+ {[%clk 0:01:21]} 28... Kh8 {[%clk 0:00:23.5]} 29. Bg5 {[%clk 0:01:17.7]}
29... a5 {[%clk 0:00:16.5]} 30. Qe1 {[%clk 0:01:06.6]} 30... a4 {[%clk 0:00:16]}
31. Qh4 {[%clk 0:01:06.3]} 31... axb3 {[%clk 0:00:13.6]} 32. axb3 {[%clk
0:01:07.2]} 32... Ra2 {[%clk 0:00:13.3]} 33. Bf4 {[%clk 0:01:00.3]} 33... Qc7
{[%clk 0:00:10.7]} 34. Bd1 {[%clk 0:00:52.5]} 34... c4 {[%clk 0:00:10.1]} 35.
bxc4 {[%clk 0:00:51.6]} 35... bxc4 {[%clk 0:00:10.7]} 36. Bg4 {[%clk 0:00:27.1]}
36... Bxg4 {[%clk 0:00:09.5]} 37. Nxg4 {[%clk 0:00:22.4]} 37... Nxg4 {[%clk
0:00:09.4]} 38. hxg4 {[%clk 0:00:21.3]} 38... Rg8 {[%clk 0:00:06.1]} 39. Rf3
{[%clk 0:00:17.9]} 39... g5 {[%clk 0:00:02.1]} 40. Bxg5 {[%clk 0:00:16.3]} 1-0

[Event "Early-Titled-Tuesday-Blitz-September-12-2023"]
[Site "Chess.com"]
[Date "2023.09.12"]
[Round "2"]
[White "ChainedDowntohell"]
[Black "TimofeevAr"]
[Result "0-1"]
[WhiteElo "2556"]
[BlackElo "2854"]
[TimeControl "180+1"]
[EndTime "8:18:13 PDT"]
[Termination "TimofeevAr won on time"]

1. e4 {[%clk 0:02:59.8]} 1... e6 {[%clk 0:02:59.1]} 2. d4 {[%clk 0:02:56.1]}
2... d5 {[%clk 0:02:58.9]} 3. Nd2 {[%clk 0:02:56]} 3... Nc6 {[%clk 0:02:56]} 4.
Ngf3 {[%clk 0:02:55.6]} 4... Nf6 {[%clk 0:02:53.8]} 5. e5 {[%clk 0:02:55.7]}
5... Nd7 {[%clk 0:02:53.9]} 6. Nb3 {[%clk 0:02:56]} 6... a5 {[%clk 0:02:52.9]}
7. a4 {[%clk 0:02:55.3]} 7... Be7 {[%clk 0:02:50]} 8. Bb5 {[%clk 0:02:54.6]}
8... O-O {[%clk 0:02:47.7]} 9. Bf4 {[%clk 0:02:49.3]} 9... f6 {[%clk 0:02:24.1]}
10. Bxc6 {[%clk 0:02:39.1]} 10... bxc6 {[%clk 0:02:23.7]} 11. O-O {[%clk
0:02:27.5]} 11... c5 {[%clk 0:02:21.5]} 12. Re1 {[%clk 0:02:19.6]} 12... c4
{[%clk 0:02:20]} 13. Nbd2 {[%clk 0:02:08.4]} 13... Ra6 {[%clk 0:02:17.3]} 14.
exf6 {[%clk 0:02:03]} 14... gxf6 {[%clk 0:02:15.9]} 15. b3 {[%clk 0:02:02]}
15... cxb3 {[%clk 0:02:12.5]} 16. Nxb3 {[%clk 0:01:57.3]} 16... c5 {[%clk
0:02:11.9]} 17. Qe2 {[%clk 0:01:25.8]} 17... Rf7 {[%clk 0:02:02.2]} 18. Bg3
{[%clk 0:01:17.3]} 18... cxd4 {[%clk 0:01:55.9]} 19. Nfxd4 {[%clk 0:01:13.6]}
19... Nf8 {[%clk 0:01:55.4]} 20. Qf3 {[%clk 0:00:45.5]} 20... Ng6 {[%clk
0:01:44.5]} 21. Nb5 {[%clk 0:00:45.2]} 21... e5 {[%clk 0:01:43.4]} 22. Rad1
{[%clk 0:00:43.2]} 22... Be6 {[%clk 0:00:59.8]} 23. c4 {[%clk 0:00:42.9]} 23...
d4 {[%clk 0:00:59.9]} 24. N3xd4 {[%clk 0:00:22.9]} 24... exd4 {[%clk 0:00:59.7]}
25. Qb7 {[%clk 0:00:23]} 25... Bc8 {[%clk 0:00:55.6]} 26. Qb8 {[%clk 0:00:20.6]}
26... Rb6 {[%clk 0:00:40.1]} 27. Qa8 {[%clk 0:00:10.7]} 27... Ra6 {[%clk
0:00:39]} 28. Qb8 {[%clk 0:00:10.1]} 28... Rb6 {[%clk 0:00:31.7]} 29. Qa8 {[%clk
0:00:10.3]} 29... Bb7 {[%clk 0:00:32]} 30. Qa7 {[%clk 0:00:09]} 30... Bc5 {[%clk
0:00:25.7]} 31. Bc7 {[%clk 0:00:07]} 31... Rxc7 {[%clk 0:00:24]} 32. Nxc7 {[%clk
0:00:04.1]} 32... Qxc7 {[%clk 0:00:24.1]} 33. Re8+ {[%clk 0:00:04.3]} 33... Kg7
{[%clk 0:00:23.7]} 34. Rde1 {[%clk 0:00:03.4]} 34... Qc6 {[%clk 0:00:20.9]} 35.
f3 {[%clk 0:00:02.8]} 35... d3+ {[%clk 0:00:21]} 36. Kf1 {[%clk 0:00:02]} 36...
d2 {[%clk 0:00:21]} 37. Rd1 {[%clk 0:00:02.3]} 37... Qxe8 {[%clk 0:00:19.5]} 0-1